bitfinex-derivatives/quotes_SOLF0:USTF0_20251201
["timestamp","ask_amount","ask_price","bid_price","bid_amount"]
[1764596708655,0.0545668,126.35,126.33,3.13]
[1764596709048,110.7582,126.44,126.33,3.13]
[1764596709049,1.09,126.42,126.35,3.13]
[1764596709255,1.09,126.42,126.37,3.13]
[1764596709449,8.2716,126.41,126.37,3.13]
[1764596710053,0.05625001,126.4,126.38,3.18236896]
[1764596710956,8.32835001,126.4,126.38,0.05236896]
[1764596712152,8.2727,126.39,126.38,0.05236896]
[1764596715366,0.05625001,126.4,126.38,3.18236896]
[1764596716349,1.15,126.45,126.38,3.18236896]
[1764596716552,1.15,126.44,126.38,3.18236896]
[1764596716757,1.15,126.44,126.38,3.13]
[1764596717363,1.15,126.44,126.4,0.05487216]
[1764596717755,7.121,126.42,126.4,0.05487216]
[1764596717958,8.271,126.42,126.4,0.05487216]
[1764596719453,7.1204,126.44,126.4,3.18487216]
[1764596719663,1.15,126.43,126.4,3.18487216]
[1764596719850,7.1204,126.44,126.4,3.18487216]
[1764596720054,8.2604,126.44,126.4,3.18487216]
[1764596720466,7.1193,126.46,126.4,3.18487216]
[1764596720662,7.1193,126.46,126.42,3.18]
[1764596720857,7.1182,126.47,126.44,3.18]
[1764596721456,8.2575,126.49,126.44,3.18]
[1764596721663,111.8313,126.52,126.44,3.18]
[1764596721862,1.14,126.51,126.47,3.23453349]
[1764596722363,1.14,126.5,126.47,0.05453349]
[1764596723366,1.14,126.48,126.47,0.05453349]
[1764596723757,1.14,126.48,126.42,3.18]
[1764596724361,8.2586,126.47,126.42,3.18]
[1764596724862,0.0570784,126.46,126.44,3.18]
[1764596726663,1.1970784,126.46,126.43,3.23936731]
[1764596727063,0.0570784,126.46,126.43,3.23936731]
[1764596728972,1.1970784,126.46,126.43,0.05936731]
[1764596730472,8.2596,126.45,126.43,0.05936731]
[1764596730669,7.1196,126.45,126.43,3.29936731]
[1764596731074,8.2596,126.45,126.43,3.29936731]
[1764596731766,1.14,126.45,126.43,3.29936731]
[1764596731964,1.1970784,126.46,126.43,3.29936731]
[1764596732875,8.3160784,126.46,126.43,3.29936731]
[1764596735674,1.14,126.44,126.43,0.05936731]
[1764596736375,8.2599,126.44,126.43,0.05936731]
[1764596736779,7.1199,126.44,126.43,0.05936731]
[1764596737376,0.0570784,126.46,126.43,3.29936731]
[1764596744394,7.1177,126.48,126.43,3.29936731]
[1764596745194,8.3177,126.48,126.43,3.29936731]
[1764596746392,7.1183,126.47,126.45,3.24]
[1764596746993,8.3173,126.49,126.45,3.24]
[1764596747183,8.3173,126.49,126.46,3.29797056]
[1764596747792,7.1173,126.49,126.47,3.24]
[1764596748386,8.3165,126.5,126.47,3.24]
[1764596750503,1.2,126.5,126.47,3.24]
[1764596751793,3.8408477,126.5,126.46,0.05797056]
[1764596751990,1.2,126.47,126.46,0.05797056]
[1764596752501,2.78,126.47,126.46,0.05797056]
[1764596752798,2.78,126.47,126.41,3.16]
[1764596752799,1.2,126.46,126.41,3.16]
[1764596753000,1.14,126.43,126.38,3.16]
[1764596753195,1.14,126.43,126.39,3.16]
[1764596753790,0.05934884,126.42,126.4,3.21383726]
[1764596756198,1.14,126.41,126.4,0.05383726]
[1764596756796,8.32044884,126.42,126.4,0.05383726]
[1764596760300,1.14,126.41,126.4,0.05383726]
[1764596761596,0.05934884,126.42,126.4,3.21383726]
[1764596761994,1.19934884,126.42,126.4,0.05383726]
[1764596762202,8.2616,126.41,126.4,0.00383726]
[1764596762395,1.09,126.4,126.35,10.52603666]
[1764596762706,1.09,126.4,126.35,3.16]
[1764596763004,8.213,126.39,126.35,3.16]
[1764596763206,1.09,126.38,126.35,3.16]
[1764596763401,1.14892718,126.38,126.36,0.05050106]
[1764596763803,1.09,126.37,126.36,0.05050106]
[1764596764011,1.09,126.37,126.31,7.36603666]
[1764596764202,1.09,126.37,126.3,10.52603666]
[1764596764507,1.09,126.37,126.3,3.16]
[1764596765206,1.04,126.33,126.32,0.05249768]
[1764596765703,110.8621,126.32,126.25,3.16]
[1764596765908,110.8621,126.32,126.24,7.36603666]
[1764596765909,0.98,126.31,126.23,3.16]
[1764596767010,1.03341072,126.28,126.26,0.05022804]
[1764596767508,0.98,126.27,126.26,0.05022804]
[1764596767710,0.98,126.27,126.2,3.16]
[1764596768706,0.05129491,126.25,126.23,3.16]
[1764596768907,0.0597875,126.25,126.23,3.21765464]
[1764596769312,0.98,126.3,126.24,3.16]
[1764596770311,1.09435445,126.28,126.26,0.05896813]
[1764596773310,7.18355445,126.28,126.26,0.05896813]
[1764596773616,1.04,126.27,126.26,0.05896813]
[1764596775314,1.09435445,126.28,126.26,0.05896813]
[1764596775615,0.05435445,126.28,126.26,3.21896813]
[1764596776713,1.04,126.33,126.26,3.21896813]
[1764596776918,110.7966,126.4,126.29,3.16]
[1764596776919,1.04,126.36,126.29,3.16]
[1764596777711,8.1646,126.36,126.29,3.16]
[1764596778018,0.06053547,126.34,126.31,3.21535188]
[1764596780410,7.1234,126.38,126.32,3.19]
[1764596780616,1.05,126.39,126.32,3.19]
[1764596780918,110.7881,126.41,126.32,3.19]
[1764596781322,0.05401933,126.38,126.35,3.25087673]
[1764596784214,1.16401933,126.38,126.35,0.06087673]
[1764596784417,1.16401933,126.38,126.35,3.25087673]
[1764596785326,1.16401933,126.38,126.35,0.06087673]
[1764596787431,1.11,126.37,126.35,0.06087673]
[1764596787921,1.11,126.37,126.26,10.4799]
[1764596787922,8.1761,126.33,126.26,10.4799]
[1764596788120,1.05,126.32,126.26,10.4799]
[1764596788323,1.05,126.32,126.27,3.35]
[1764596788528,1.05,126.31,126.27,3.35]
[1764596788927,0.05407486,126.3,126.28,0.05651414]
[1764596789527,0.05407486,126.3,126.28,3.40651414]
[1764596790829,118.14652457,126.39,126.28,3.40651414]
[1764596790830,1.05,126.37,126.28,3.40651414]
[1764596791030,1.05,126.37,126.28,3.35]
[1764596791434,7.1245,126.36,126.29,3.35]
[1764596791731,0.05003506,126.34,126.31,0.05886614]
[1764596791926,0.05003506,126.34,126.31,3.40886614]
[1764596793731,1.1,126.43,126.32,3.35]
[1764596793929,1.1,126.43,126.35,3.35]
[1764596794125,7.1211,126.42,126.36,3.35]
[1764596794324,1.1,126.43,126.36,3.35]
[1764596794522,7.1211,126.42,126.36,3.35]
[1764596794725,1.15532914,126.4,126.38,0.05690847]
[1764596795325,0.05532914,126.4,126.38,3.40690847]
[1764596796430,0.05532914,126.4,126.38,0.05690847]
[1764596798337,0.05532914,126.4,126.38,3.40690847]
[1764596799031,1.1,126.46,126.38,3.40690847]
[1764596799238,1.1,126.46,126.38,3.35]
[1764596799836,1.1,126.46,126.41,3.40557406]
[1764596800032,1.1,126.46,126.42,0.05114445]
[1764596800236,1.1,126.46,126.43,0.06012952]
[1764596800433,7.1194,126.45,126.43,0.06012952]
[1764596800742,1.1,126.44,126.43,0.06012952]
[1764596802638,8.1611,126.42,126.36,3.35]
[1764596803142,7.1203,126.44,126.37,3.35]
[1764596803544,0.05010244,126.42,126.39,3.40702303]
[1764596808950,1.09010244,126.42,126.39,0.05702303]
[1764596809240,1.04,126.4,126.39,0.05702303]
[1764596810138,8.1621,126.4,126.39,0.05702303]
[1764596812747,1.04,126.39,126.35,3.35]
[1764596813339,1.04,126.42,126.35,3.35]
[1764596813844,0.06022483,126.4,126.37,3.33873179]
[1764596815350,0.06022483,126.4,126.38,3.28]
[1764596819349,0.06022483,126.4,126.37,3.33873179]
[1764596819350,1.10022483,126.4,126.37,3.33873179]
[1764596820345,1.10022483,126.4,126.37,0.05873179]
[1764596820541,8.1632,126.38,126.37,0.05873179]
[1764596820950,0.06022483,126.4,126.37,3.33873179]
[1764596821149,1.10022483,126.4,126.37,0.05873179]
[1764596821553,1.10022483,126.4,126.37,3.33873179]
[1764596821944,8.22292483,126.4,126.37,3.33873179]
[1764596822146,1.04,126.39,126.3,10.64603666]
[1764596822351,0.98,126.37,126.3,10.64603666]
[1764596822550,0.98,126.37,126.3,3.28]
[1764596822756,0.98,126.33,126.3,3.28]
[1764596822951,0.98,126.33,126.27,7.36603666]
[1764596823159,0.98,126.33,126.28,3.28]
[1764596823366,0.98,126.33,126.26,14.49563666]
[1764596823367,0.05380121,126.32,126.29,3.33970997]
[1764596823859,1.03380121,126.32,126.29,0.05970997]
[1764596824445,0.05380121,126.32,126.29,3.33970997]
[1764596827459,1.03380121,126.32,126.29,0.05970997]
[1764596827959,8.16050121,126.32,126.29,0.05970997]
[1764596828255,0.98,126.31,126.29,0.05970997]
[1764596828651,0.98,126.3,126.29,0.05970997]
[1764596828847,0.98,126.3,126.23,3.28]
[1764596829760,0.05195162,126.28,126.25,0.05061317]
[1764596829959,1.03195162,126.28,126.25,0.05061317]
[1764596830162,8.16115162,126.28,126.25,0.05061317]
[1764596830660,8.16115162,126.28,126.25,3.33061317]
[1764596830866,1.03195162,126.28,126.25,3.33061317]
[1764596831654,0.05195162,126.28,126.25,3.33061317]
[1764596833161,7.18125162,126.28,126.25,3.33061317]
[1764596834163,0.05195162,126.28,126.25,3.33061317]
[1764596834362,1.03195162,126.28,126.25,3.33061317]
[1764596834560,8.16095162,126.28,126.25,3.33061317]
[1764596835258,8.16095162,126.28,126.25,0.05061317]
[1764596835259,0.98,126.26,126.25,0.05061317]
[1764596835455,7.1299,126.27,126.25,0.05061317]
[1764596835858,8.1099,126.27,126.25,0.05061317]
[1764596836157,0.05195162,126.28,126.25,0.05061317]
[1764596836361,0.05195162,126.28,126.25,3.33061317]
[1764596842069,0.98,126.31,126.25,3.33061317]
[1764596842070,7.1277,126.31,126.25,3.33061317]
[1764596842870,7.1277,126.31,126.26,3.17]
[1764596843172,0.05527687,126.3,126.26,3.17]
[1764596844176,0.05527687,126.3,126.26,10.2997]
[1764596844367,0.05527687,126.3,126.27,3.17]
[1764596844971,110.8319,126.36,126.28,3.17]
[1764596845365,126.1513,126.38,126.28,3.17]
[1764596845566,1.09,126.35,126.28,3.17]
[1764596845963,0.05352459,126.33,126.3,3.22228073]
[1764596846371,7.18002459,126.33,126.3,3.22228073]
[1764596847881,0.05352459,126.33,126.3,3.22228073]
[1764596852174,1.14352459,126.33,126.3,3.22228073]
[1764596854679,0.05352459,126.33,126.3,3.22228073]
[1764596857991,1.14352459,126.33,126.3,3.22228073]
[1764596858190,0.05352459,126.33,126.3,3.22228073]
[1764596859589,0.05352459,126.33,126.32,3.29]
[1764596859792,3.73689417,126.39,126.32,3.29]
[1764596859987,2.64689417,126.41,126.35,3.29]
[1764596860193,8.2111,126.42,126.39,3.29]
[1764596860495,1.09,126.41,126.37,3.29]
[1764596860994,0.05177437,126.4,126.38,3.34855034]
[1764596866796,1.03,126.38,126.33,10.4156]
[1764596866995,1.03,126.38,126.34,3.29]
[1764596867298,1.03,126.4,126.34,3.29]
[1764596868007,7.124,126.37,126.36,0.05149981]
[1764596870494,1.08104326,126.38,126.36,0.05149981]
[1764596871399,7.1238,126.37,126.36,0.05149981]
[1764596873706,1.08104326,126.38,126.36,0.05149981]
[1764596875503,1.03,126.37,126.36,0.05149981]
[1764596875806,0.05104326,126.38,126.36,3.16149981]
[1764596877603,1.08104326,126.38,126.36,0.05149981]
[1764596878206,7.1238,126.37,126.36,0.05149981]
[1764596878406,1.03,126.41,126.36,3.16149981]
[1764596878704,1.03,126.43,126.36,3.16149981]
[1764596879008,8.1516,126.41,126.36,3.11]
[1764596879403,8.1516,126.41,126.37,0.05628223]
[1764596879609,0.05571711,126.4,126.38,3.11]
[1764596885713,1.08571711,126.4,126.38,3.11]
[1764596885911,3.72938221,126.4,126.37,0.05628223]
[1764596886217,1.03,126.39,126.37,0.05628223]
[1764596886816,8.1532,126.38,126.37,0.05628223]
[1764596889319,7.1232,126.38,126.37,3.16628223]
[1764596889524,0.05571711,126.4,126.37,3.16628223]
[1764596889525,7.17801711,126.4,126.37,3.16628223]
[1764596890418,8.20801711,126.4,126.37,3.16628223]
[1764596890719,1.03,126.39,126.37,0.05628223]
[1764596891714,1.03,126.37,126.31,10.47603666]
[1764596891917,1.03,126.35,126.31,3.11]
[1764596892707,0.05009741,126.34,126.32,0.05187746]
[1764596893108,0.05009741,126.34,126.32,3.16187746]
[1764596894213,1.08009741,126.34,126.32,0.05187746]
[1764596895319,7.1261,126.33,126.32,0.05187746]
[1764596895521,1.08009741,126.34,126.32,0.05187746]
[1764596899127,8.1561,126.33,126.32,0.05187746]
[1764596899426,1.03,126.32,126.27,13.29970176]
[1764596899627,1.03,126.3,126.26,7.36603666]
[1764596899830,1.03,126.3,126.27,3.29]
[1764596900225,1.03,126.3,126.26,3.2]
[1764596900528,1.03,126.28,126.27,0.05824743]
[1764596903424,7.18015334,126.29,126.27,3.25824743]
[1764596903730,8.21015334,126.29,126.27,0.05824743]
[1764596904324,1.03,126.28,126.27,0.05824743]
[1764596909336,8.21015334,126.29,126.27,0.05824743]
[1764596909636,1.03,126.28,126.27,0.05824743]
[1764596910132,8.1589,126.28,126.27,0.05824743]
[1764596912039,0.05155334,126.29,126.28,3.38]
[1764596920450,7.1263,126.33,126.29,3.38]
[1764596920751,8.2063,126.33,126.29,3.38]
[1764596921044,1.08,126.31,126.27,4.1370373]
[1764596921247,1.08,126.31,126.28,3.38]
[1764596921437,1.08,126.31,126.28,3.43721834]
[1764596921645,1.08,126.3,126.28,0.05721834]
[1764596922547,1.08,126.3,126.28,3.43721834]
[1764596923255,8.2078,126.3,126.28,3.43721834]
[1764596924650,7.1278,126.3,126.28,3.43721834]
[1764596926358,7.18684985,126.31,126.28,3.43721834]
[1764596927149,111.9012,126.37,126.29,3.38]
[1764596927352,1.14,126.36,126.29,3.38]
[1764596928257,1.14,126.33,126.31,0.05959255]
[1764596929364,7.1268,126.32,126.31,3.43959255]
[1764596930056,7.1268,126.32,126.31,0.05959255]
[1764596931446,0.05185505,126.34,126.31,0.05959255]
[1764596931447,1.19185505,126.34,126.31,3.40959255]
[1764596932049,1.14,126.33,126.31,0.05959255]
[1764596932855,8.2666,126.33,126.31,0.05959255]
[1764596933253,1.14,126.33,126.31,0.05959255]
[1764596933456,7.1266,126.32,126.31,0.05959255]
[1764596935965,7.1261,126.33,126.31,3.40959255]
[1764596936466,0.05185505,126.34,126.31,3.40959255]
[1764596937059,7.17745505,126.34,126.31,3.40959255]
[1764596937960,0.05185505,126.34,126.31,3.40959255]
[1764596940062,1.19185505,126.34,126.31,3.40959255]
[1764596940268,0.05185505,126.34,126.31,3.40959255]
[1764596940867,110.8093,126.38,126.31,3.40959255]
[1764596940868,7.1237,126.38,126.34,3.35]
[1764596941168,1.14,126.42,126.36,3.35]
[1764596941369,8.2624,126.4,126.36,3.35]
[1764596941764,0.02754976,126.39,126.37,0.05008912]
[1764596942178,8.29054976,126.39,126.37,0.05008912]
[1764596942374,1.14,126.38,126.37,0.05008912]
[1764596942969,8.2152,126.35,126.32,10.73881391]
[1764596943170,8.2152,126.35,126.32,3.35]
[1764596943369,1.09,126.34,126.31,3.35]
[1764596943676,1.09,126.33,126.29,3.35]
[1764596944180,8.2737715,126.32,126.3,0.05419843]
[1764596944378,1.09,126.31,126.3,0.05419843]
[1764596944768,7.1837715,126.32,126.3,3.40419843]
[1764596944968,0.0569715,126.32,126.3,3.40419843]
[1764596945170,0.0569715,126.32,126.3,10.79301234]
[1764596945368,0.0569715,126.32,126.31,3.35]
[1764596945977,113.3763055,126.39,126.31,3.35]
[1764596945978,7.1246,126.36,126.31,3.35]
[1764596946276,8.2146,126.36,126.32,3.35]
[1764596946475,7.1246,126.36,126.32,3.35]
[1764596946870,7.1246,126.36,126.33,3.40295419]
[1764596946871,0.02066737,126.35,126.33,3.40295419]
[1764596950376,0.02066737,126.35,126.33,0.05295419]
[1764596950377,1.09,126.34,126.33,0.05295419]
[1764596950575,1.09,126.34,126.29,7.38881391]
[1764596950776,1.09,126.34,126.29,10.73881391]
[1764596951086,1.09,126.32,126.26,37.95881391]
[1764596951576,0.0553881,126.3,126.28,3.40763081]
[1764596957566,1.1453881,126.3,126.28,0.05763081]
[1764596957978,0.0553881,126.3,126.28,3.40763081]
[1764596960880,1.1453881,126.3,126.28,0.05763081]
[1764596962384,8.2731881,126.3,126.28,0.05763081]
[1764596964778,7.1831881,126.3,126.28,3.15763081]
[1764596965183,8.2731881,126.3,126.28,0.05763081]
[1764596965985,8.2731881,126.3,126.28,3.15763081]
[1764596971690,8.2283,126.29,126.28,0.05763081]
[1764596973601,0.0553881,126.3,126.28,3.21763081]
[1764596974193,7.1832881,126.3,126.28,3.21763081]
[1764596974493,1.1553881,126.3,126.28,0.05763081]
[1764596976390,8.2283,126.29,126.28,0.05763081]
[1764596983205,2.70486299,126.3,126.28,3.21763081]
[1764596983206,7.1831881,126.3,126.28,3.21763081]
[1764596983396,8.2831881,126.3,126.28,3.21763081]
[1764596983597,0.0553881,126.3,126.28,3.21763081]
[1764596983797,0.0553881,126.3,126.29,5.80947489]
[1764596984699,0.0553881,126.3,126.29,3.16]
[1764596985699,0.0553881,126.3,126.28,0.05763081]
[1764596985700,1.1553881,126.3,126.28,0.05763081]
[1764596985898,1.1553881,126.3,126.28,3.21763081]
[1764596987109,0.0553881,126.3,126.28,3.21763081]
[1764596989000,7.1831881,126.3,126.28,3.21763081]
[1764596989405,7.1831881,126.3,126.28,0.05763081]
[1764596989406,8.2831881,126.3,126.28,0.05763081]
[1764596990604,0.0553881,126.3,126.28,3.28763081]
[1764596992805,1.1,126.29,126.28,0.05763081]
[1764596993705,8.2831881,126.3,126.28,0.05763081]
[1764596994908,0.0553881,126.3,126.28,3.28763081]
[1764596995109,0.0553881,126.3,126.28,10.6809897]
[1764596995309,0.0553881,126.3,126.29,3.23]
[1764596998517,1.1,126.35,126.3,3.23]
[1764596998717,1.1,126.35,126.31,10.62335889]
[1764596999308,7.1261,126.33,126.31,10.62335889]
[1764596999507,7.1261,126.33,126.31,10.68299911]
[1764596999707,8.2261,126.33,126.31,7.45299911]
[1764596999914,8.2261,126.33,126.31,0.05964022]
[1764597000520,8.2266,126.32,126.31,0.05964022]
[1764597003115,1.04,126.3,126.26,7.39335889]
[1764597003316,1.04,126.29,126.26,7.39335889]
[1764597003622,1.04,126.29,126.23,7.39335889]
[1764597003623,1.04,126.25,126.23,7.39335889]
[1764597004321,1.09749163,126.25,126.23,0.05898586]
[1764597004716,1.09749163,126.25,126.23,3.28898586]
[1764597004918,0.05749163,126.25,126.23,3.28898586]
[1764597005410,1.09749163,126.25,126.23,0.05898586]
[1764597005919,8.1712,126.24,126.23,0.05898586]
[1764597006718,7.1312,126.24,126.23,0.05898586]
[1764597007124,8.1712,126.24,126.23,0.05898586]
[1764597007822,7.18829163,126.25,126.23,3.28898586]
[1764597008518,0.05749163,126.25,126.23,3.28898586]
[1764597008719,0.05749163,126.25,126.24,3.23]
[1764597011124,1.09749163,126.25,126.23,0.05898586]
[1764597012429,8.22839163,126.25,126.23,0.05898586]
[1764597012631,1.04,126.24,126.23,0.05898586]
[1764597013127,1.09749163,126.25,126.23,0.05898586]
[1764597013330,8.1712,126.24,126.23,0.05898586]
[1764597013528,0.05749163,126.25,126.24,3.23]
[1764597013834,0.05749163,126.25,126.23,10.68234475]
[1764597014034,0.05749163,126.25,126.24,3.23]
[1764597015833,0.05749163,126.25,126.24,5.87947489]
[1764597016036,3.84060269,126.3,126.25,3.23]
[1764597016227,3.84060269,126.31,126.27,3.23]
[1764597016427,8.1677,126.31,126.27,3.23]
[1764597016633,7.1277,126.31,126.27,3.23]
[1764597016836,8.1677,126.31,126.27,3.23]
[1764597017339,0.02038206,126.3,126.28,0.05477203]
[1764597017540,0.02038206,126.3,126.28,3.28477203]
[1764597018436,1.06038206,126.3,126.28,0.05477203]
[1764597018633,8.1683,126.29,126.28,0.05477203]
[1764597019632,2.66985695,126.3,126.24,10.04283378]
[1764597019633,1.04,126.28,126.24,10.04283378]
[1764597019831,1.04,126.28,126.25,3.35]
[1764597020035,3.82723314,126.3,126.25,3.35]
[1764597020233,1.03,126.3,126.25,3.35]
[1764597020433,7.1278,126.3,126.27,3.35]
[1764597020629,7.18281897,126.3,126.27,3.40912202]
[1764597023842,1.03,126.28,126.27,0.05912202]
[1764597024041,1.03,126.28,126.23,7.39335889]
[1764597024245,1.03,126.28,126.21,3.35]
[1764597024246,0.98,126.25,126.21,3.35]
[1764597024440,2.79566019,126.26,126.21,3.35]
[1764597024645,3.77526141,126.26,126.21,3.35]
[1764597024846,0.98,126.26,126.22,3.35]
[1764597025143,0.05205536,126.25,126.23,0.05552931]
[1764597025333,1.03205536,126.25,126.23,0.05552931]
[1764597026335,8.16275536,126.25,126.23,0.05552931]
[1764597026843,0.92,126.21,126.15,10.74335889]
[1764597027040,0.92,126.2,126.15,10.74335889]
[1764597027237,0.92,126.2,126.16,3.35]
[1764597027841,0.05202827,126.19,126.17,0.05497265]
[1764597028041,0.05202827,126.19,126.17,3.26497265]
[1764597028242,0.05202827,126.19,126.18,3.21]
[1764597028638,0.05202827,126.19,126.17,3.26497265]
[1764597030843,0.97,126.27,126.18,3.21]
[1764597031045,0.97,126.27,126.19,3.21]
[1764597032041,0.97,126.27,126.22,0.05249028]
[1764597032239,0.05696679,126.24,126.23,3.21]
[1764597032439,0.05696679,126.24,126.22,0.05249028]
[1764597032440,1.02696679,126.24,126.22,0.05249028]
[1764597033339,8.15836679,126.24,126.22,0.05249028]
[1764597034348,1.02696679,126.24,126.22,0.05249028]
[1764597034848,0.97,126.22,126.16,10.5902002]
[1764597035747,0.97,126.22,126.16,3.21]
[1764597035943,0.05940893,126.2,126.18,3.26224581]
[1764597037750,7.1307,126.25,126.19,3.21]
[1764597038049,8.162,126.23,126.18,3.21]
[1764597038244,7.132,126.23,126.18,3.21]
[1764597038550,111.9461,126.26,126.18,3.21]
[1764597038752,0.05738484,126.23,126.21,3.26617445]
[1764597039456,1.03,126.28,126.22,3.21]
[1764597039655,1.03,126.28,126.23,3.21]
[1764597040452,118.24371133,126.31,126.24,0.05089406]
[1764597040453,1.14767859,126.27,126.24,0.05089406]
[1764597041349,1.09,126.25,126.24,0.05089406]
[1764597045550,1.09,126.24,126.18,17.7245002]
[1764597045754,1.09,126.24,126.18,10.3443]
[1764597046154,1.09,126.24,126.19,3.21]
[1764597046551,0.05990754,126.23,126.2,0.05251642]
[1764597046744,0.05990754,126.23,126.2,3.26251642]
[1764597047655,1.15,126.29,126.21,3.21]
[1764597047847,1.15,126.29,126.22,3.21]
[1764597048459,1.15,126.28,126.22,3.21]
[1764597048647,0.05784179,126.26,126.24,0.05185404]
[1764597048849,1.20784179,126.26,126.24,0.05185404]
[1764597049855,8.33794179,126.26,126.24,0.05185404]
[1764597050555,1.14,126.25,126.24,0.05185404]
[1764597051956,8.32794179,126.26,126.24,0.05185404]
[1764597052156,8.32794179,126.26,126.24,3.20185404]
[1764597052157,0.05784179,126.26,126.24,3.20185404]
[1764597052754,31.15068452,126.32,126.26,3.15]
[1764597053063,1.14,126.31,126.26,3.15]
[1764597053261,8.2678,126.3,126.26,3.15]
[1764597053657,8.2678,126.3,126.27,3.20451069]
[1764597053964,1.14,126.3,126.27,3.20451069]
[1764597054458,1.14,126.35,126.27,3.20451069]
[1764597054667,1.14,126.35,126.3,3.20186239]
[1764597054862,1.14,126.34,126.3,3.20186239]
[1764597055051,2.77251952,126.36,126.3,3.20186239]
[1764597055361,2.77251952,126.38,126.3,3.20186239]
[1764597055657,7.25777023,126.41,126.32,3.15]
[1764597055658,9.89571952,126.39,126.32,3.15]
[1764597055861,2.77251952,126.4,126.34,3.15]
[1764597056057,3.91251952,126.41,126.34,3.15]
[1764597056259,8.2617,126.41,126.37,3.15]
[1764597056655,1.14,126.41,126.36,0.05629207]
[1764597056852,1.14,126.41,126.36,3.20629207]
[1764597058462,1.14,126.4,126.36,3.20629207]
[1764597060152,1.14,126.4,126.36,0.05629207]
[1764597060352,1.14,126.38,126.36,0.05629207]
[1764597060555,1.14,126.36,126.3,3.15]
[1764597060866,1.14,126.36,126.28,30.39]
[1764597061056,1.14,126.34,126.28,30.39]
[1764597061464,1.14,126.34,126.28,3.15]
[1764597061658,0.05399174,126.32,126.3,3.20162847]
[1764597061855,0.05399174,126.32,126.3,3.20672629]
[1764597063766,1.19399174,126.32,126.3,0.05672629]
[1764597064163,8.32079174,126.32,126.3,0.05672629]
[1764597065360,8.2677,126.31,126.24,3.15]
[1764597065568,1.14,126.31,126.24,3.15]
[1764597066266,7.1284,126.29,126.24,3.15]
[1764597066764,0.05278871,126.28,126.26,3.15]
[1764597067668,1.19278871,126.28,126.25,3.20641089]
[1764597067966,0.05278871,126.28,126.25,3.20641089]
[1764597071368,1.19278871,126.28,126.25,0.05641089]
[1764597071563,1.14,126.27,126.25,0.05641089]
[1764597072468,8.2698,126.27,126.25,0.05641089]
[1764597072671,0.05278871,126.28,126.25,3.20641089]
[1764597074771,8.2697,126.27,126.25,0.05641089]
[1764597074988,1.14,126.26,126.25,0.05641089]
[1764597078484,0.05278871,126.28,126.25,3.20641089]
[1764597079385,1.19278871,126.28,126.25,0.05641089]
[1764597081493,8.2795,126.27,126.25,0.05641089]
[1764597083387,0.05278871,126.28,126.25,3.31641089]
[1764597084896,0.05278871,126.28,126.26,3.26]
[1764597087289,0.00278871,126.28,126.26,3.26]
[1764597087587,7.1276,126.31,126.26,3.26]
[1764597088392,0.05082163,126.3,126.26,3.26]
[1764597089494,0.05082163,126.3,126.26,10.3899]
[1764597089689,0.05082163,126.3,126.27,3.09]
[1764597090090,1.2,126.35,126.29,3.09]
[1764597090598,1.25,126.34,126.29,3.09]
[1764597090799,1.25,126.34,126.26,3.09]
[1764597091292,1.25,126.34,126.29,3.14968462]
[1764597091597,8.3761,126.33,126.29,3.14968462]
[1764597091792,1.25,126.33,126.29,3.14968462]
[1764597092899,8.3761,126.33,126.29,3.14968462]
[1764597093394,7.1253,126.35,126.29,10.27798462]
[1764597093699,8.3753,126.35,126.3,3.09]
[1764597095293,1.25,126.34,126.3,3.09]
[1764597096602,8.3755,126.34,126.3,3.09]
[1764597097500,8.3762,126.33,126.3,3.09]
[1764597097699,8.3762,126.33,126.3,3.15092611]
[1764597098401,8.49721669,126.41,126.3,3.15092611]
[1764597098597,3.9615232,126.41,126.34,3.14091165]
[1764597098798,1.25,126.41,126.34,0.05091165]
[1764597099296,113.4868232,126.42,126.34,3.14091165]